[Event "EYCC Girls-U14 2019"]
[Site "Bratislava"]
[Date "2019.08.06"]
[Round "5.22"]
[White "Reuter, Elisa"]
[Black "Minaeva, Juliana"]
[Result "1-0"]
[ECO "B92"]
[WhiteElo "1930"]
[BlackElo "1733"]
[Annotator "NA"]
[PlyCount "83"]
[EventDate "2019.08.02"]
[EventType "swiss"]
[EventCountry "SVK"]
[SourceTitle "playchess.com"]
[Source "ChessBase"]
[SourceQuality "1"]
[TimeControl "40/5400+30:1800+30"]

1. e4 {[%emt 0:00:00]} c5 {[%emt 0:00:00]} 2. Nf3 {[%emt 0:00:00]} d6 {[%emt 0:00:06]} 3. d4 {[%emt 0:00:00]} cxd4 {[%emt 0:00:07]} 4. Nxd4 {[%emt 0:00:00]} Nf6 {[%emt 0:00:11]} 5. Nc3 {[%emt 0:00:00]} a6 {[%emt 0:00:06]} 6. Be2 {[%emt 0:00:00]} e5 {[%emt 0:00:07]} 7. Nb3 {[%emt 0:00:00]} Be7 {[%emt 0:00:29]} 8. O-O {[%emt 0:00:02]} O-O {[%emt 0:00:07]} 9. f4 {[%emt 0:00:18]} b5 {[%emt 0:07:12]} 10. a3 {[%emt 0:19:26]} Nc6 {[%emt 0:03:34]} 11. f5 {[%emt 0:04:59]} Bb7 {[%emt 0:07:44]} 12. Bf3 {[%emt 0:03:48]} Rc8 {[%emt 0:07:04]} 13. Kh1 {[%emt 0:02:32]} Nd7 {[%emt 0:07:23]} 14. Be3 {[%emt 0:03:15]} Na5 {[%emt 0:20:26]} 15. Nxa5 {[%emt 0:04:20]} Qxa5 {[%emt 0:01:01]} 16. Qe1 {[%emt 0:01:54]} Qd8 {[%emt 0:03:00]} 17. Rd1 {[%emt 0:01:47]} Nb6 {[%emt 0:02:04]} 18. Bxb6 {[%emt 0:35:17]} Qxb6 {[%emt 0:00:15]} 19. Qd2 {[%emt 0:02:22]} h6 {[%emt 0:13:37]} 20. Bg4 {[%emt 0:05:21]} f6 {[%emt 0:05:35]} 21. Bh5 {[%emt 0:01:16]} Qc5 {[%emt 0:05:10]} 22. Rf3 {[%emt 0:01:50]} b4 {[%emt 0:02:09]} 23. axb4 {[%emt 0:00:08]} Qc4 {[%emt 0:01:10]} 24. Rg3 {[%emt 0:00:51]} Kh7 {[%emt 0:00:24]} 25. Bg6+ {[%emt 0:01:00]} Kg8 {[%emt 0:00:31]} 26. Bh5 {[%emt 0:02:28]} Kh7 {[%emt 0:00:09]} 27. Bg6+ {[%emt 0:01:58]} Kg8 {[%emt 0:00:09]} 28. b3 {[%emt 0:00:35]} Qc7 {[%emt 0:06:24]} 29. Qe2 {[%emt 0:00:56]} Rfd8 {[%emt 0:02:04]} 30. b5 {[%emt 0:03:43]} a5 {[%emt 0:02:55]} 31. Qg4 {[%emt 0:00:39]} Bf8 {[%emt 0:01:19]} 32. Qe2 {[%emt 0:02:54]} d5 {[%emt 0:01:19]} 33. exd5 {[%emt 0:00:17]} Bb4 {[%emt 0:00:14]} 34. b6 {[%emt 0:01:21]} Qc5 {[%emt 0:01:17]} 35. Ne4 {[%emt 0:00:51]} Qxc2 {[%emt 0:00:11]} 36. Qg4 {[%emt 0:00:42]} Kh8 {[%emt 0:01:19]} 37. Bf7 {[%emt 0:00:21]} Bf8 {[%emt 0:00:17]} 38. Be6 {[%emt 0:00:41]} Rxd5 {[%emt 0:01:05]} 39. Bxd5 {[%emt 0:00:06]} Bxd5 {[%emt 0:00:05]} 40. Rxd5 {[%emt 0:00:00]} Qb1+ {[%emt 0:00:00]} 41. Rd1 {[%emt 0:01:11]} Rc1 {[%emt 0:00:23]} 42. Nf2 {[%emt 0:00:32]} 1-0

[Event "EYCC Girls-U14 2019"]
[Site "Bratislava"]
[Date "2019.08.06"]
[Round "5.23"]
[White "Kralj, Nika"]
[Black "Croisille, Shanti"]
[Result "1-0"]
[ECO "B76"]
[WhiteElo "1807"]
[BlackElo "1695"]
[Annotator "NA"]
[PlyCount "107"]
[EventDate "2019.08.02"]
[EventType "swiss"]
[EventCountry "SVK"]
[SourceTitle "playchess.com"]
[Source "ChessBase"]
[SourceQuality "1"]
[TimeControl "40/5400+30:1800+30"]

1. e4 {[%emt 0:00:00]} c5 {[%emt 0:00:00]} 2. Nf3 {[%emt 0:00:00]} d6 {[%emt 0:00:00]} 3. d4 {[%emt 0:00:00]} cxd4 {[%emt 0:00:00]} 4. Nxd4 {[%emt 0:00:00]} Nf6 {[%emt 0:00:00]} 5. Nc3 {[%emt 0:00:00]} g6 {[%emt 0:00:00]} 6. Be3 {[%emt 0:00:00]} Bg7 {[%emt 0:00:02]} 7. f3 {[%emt 0:00:06]} O-O {[%emt 0:00:06]} 8. Qd2 {[%emt 0:00:03]} Nc6 {[%emt 0:00:06]} 9. g4 {[%emt 0:00:06]} Nxd4 {[%emt 0:00:06]} 10. Bxd4 {[%emt 0:00:07]} Be6 {[%emt 0:00:09]} 11. h4 {[%emt 0:02:11]} Qa5 {[%emt 0:01:05]} 12. a3 {[%emt 0:00:49]} Rfc8 {[%emt 0:01:07]} 13. g5 {[%emt 0:01:19]} Nh5 {[%emt 0:01:59]} 14. Bxg7 {[%emt 0:00:12]} Kxg7 {[%emt 0:00:49]} 15. O-O-O {[%emt 0:05:46]} Rab8 {[%emt 0:12:33]} 16. Bh3 {[%emt 0:14:59]} Bxh3 {[%emt 0:02:29]} 17. Rxh3 {[%emt 0:00:06]} b5 {[%emt 0:10:02]} 18. f4 {[%emt 0:05:25]} b4 {[%emt 0:25:31]} 19. Nd5 {[%emt 0:02:06]} Qa4 {[%emt 0:09:13]} 20. Nxe7 {[%emt 0:10:00]} Rc5 {[%emt 0:08:15]} 21. Qd4+ {[%emt 0:08:42]} f6 {[%emt 0:04:00]} 22. Rd2 {[%emt 0:01:43]} Qa6 {[%emt 0:03:17]} 23. Rd1 {[%emt 0:14:57]} b3 {[%emt 0:01:35]} 24. gxf6+ {[%emt 0:08:11]} Nxf6 {[%emt 0:01:21]} 25. Nd5 {[%emt 0:02:17]} Rxd5 {[%emt 0:02:40]} 26. exd5 {[%emt 0:00:14]} bxc2 {[%emt 0:00:23]} 27. Kxc2 {[%emt 0:00:43]} Qe2+ {[%emt 0:01:10]} 28. Kb1 {[%emt 0:00:59]} Rb7 {[%emt 0:01:29]} 29. Rhh1 {[%emt 0:03:46]} Qe4+ {[%emt 0:01:16]} 30. Ka1 {[%emt 0:02:56]} Qc2 {[%emt 0:00:53]} 31. Rd2 {[%emt 0:04:33]} Qf5 {[%emt 0:00:36]} 32. Re1 {[%emt 0:05:40]} Kf7 {[%emt 0:01:39]} 33. Re6 {[%emt 0:02:33]} Nxd5 {[%emt 0:03:20]} 34. Rxd6 {[%emt 0:00:12]} Nb6 {[%emt 0:00:11]} 35. Qe5 {[%emt 0:02:07]} Qxe5 {[%emt 0:02:35]} 36. fxe5 {[%emt 0:00:01]} Ke7 {[%emt 0:00:11]} 37. Rc6 {[%emt 0:02:21]} Nd7 {[%emt 0:02:25]} 38. Re2 {[%emt 0:00:42]} Ke8 {[%emt 0:01:35]} 39. e6 {[%emt 0:01:16]} Nf6 {[%emt 0:00:39]} 40. e7 {[%emt 0:00:00]} Rxe7 {[%emt 0:00:00]} 41. Rxe7+ {[%emt 0:01:20]} Kxe7 {[%emt 0:00:11]} 42. Rc7+ {[%emt 0:00:06]} Kd6 {[%emt 0:00:13]} 43. Rxa7 {[%emt 0:00:06]} Ke5 {[%emt 0:01:21]} 44. b4 {[%emt 0:01:02]} Kf4 {[%emt 0:00:27]} 45. b5 {[%emt 0:00:05]} Kg4 {[%emt 0:00:07]} 46. Ra4+ {[%emt 0:00:05]} Kh5 {[%emt 0:00:26]} 47. b6 {[%emt 0:00:10]} Nd7 {[%emt 0:00:30]} 48. b7 {[%emt 0:00:18]} h6 {[%emt 0:00:21]} 49. Rb4 {[%emt 0:01:12]} g5 {[%emt 0:00:21]} 50. hxg5 {[%emt 0:00:17]} hxg5 {[%emt 0:00:04]} 51. Rd4 {[%emt 0:00:30]} Nb8 {[%emt 0:00:20]} 52. Rd8 {[%emt 0:00:12]} Na6 {[%emt 0:00:10]} 53. b8=Q {[%emt 0:00:06]} Nxb8 {[%emt 0:00:07]} 54. Rxb8 {[%emt 0:00:04]} 1-0

[Event "EYCC Girls-U14 2019"]
[Site "Bratislava"]
[Date "2019.08.06"]
[Round "5.24"]
[White "Rubinshtein, Kamilla"]
[Black "Zvereva, Margarita"]
[Result "1/2-1/2"]
[ECO "B22"]
[WhiteElo "1799"]
[BlackElo "1693"]
[Annotator "NA"]
[PlyCount "78"]
[EventDate "2019.08.02"]
[EventType "swiss"]
[EventCountry "SVK"]
[SourceTitle "playchess.com"]
[Source "ChessBase"]
[SourceQuality "1"]
[TimeControl "40/5400+30:1800+30"]

1. e4 {[%emt 0:00:00]} c5 {[%emt 0:00:00]} 2. c3 {[%emt 0:00:00]} d5 {[%emt 0:00:03]} 3. exd5 {[%emt 0:00:00]} Qxd5 {[%emt 0:00:09]} 4. d4 {[%emt 0:00:01]} e6 {[%emt 0:01:26]} 5. Nf3 {[%emt 0:01:35]} Nf6 {[%emt 0:01:14]} 6. Be2 {[%emt 0:01:26]} Nc6 {[%emt 0:01:27]} 7. O-O {[%emt 0:01:45]} Be7 {[%emt 0:02:02]} 8. Be3 {[%emt 0:14:26]} cxd4 {[%emt 0:05:52]} 9. cxd4 {[%emt 0:00:13]} O-O {[%emt 0:00:39]} 10. Nc3 {[%emt 0:00:31]} Qd8 {[%emt 0:04:07]} 11. Qd2 {[%emt 0:06:21]} Nb4 {[%emt 0:07:39]} 12. Ne5 {[%emt 0:08:06]} Nbd5 {[%emt 0:04:33]} 13. Rac1 {[%emt 0:17:49]} Bd7 {[%emt 0:08:10]} 14. Bd3 {[%emt 0:06:25]} Bb4 {[%emt 0:13:48]} 15. Qe2 {[%emt 0:08:20]} Bc6 {[%emt 0:10:05]} 16. Nxc6 {[%emt 0:11:50]} bxc6 {[%emt 0:00:13]} 17. Ne4 Nxe4 {[%emt 0:07:47]} 18. Bxe4 {[%emt 0:04:05]} Rc8 {[%emt 0:01:15]} 19. Rc4 {[%emt 0:03:25]} Be7 {[%emt 0:07:52]} 20. Rfc1 {[%emt 0:00:50]} f5 {[%emt 0:06:42]} 21. Bxd5 {[%emt 0:06:10]} Qxd5 {[%emt 0:00:13]} 22. Bf4 {[%emt 0:01:30]} Bf6 {[%emt 0:05:55]} 23. Be5 {[%emt 0:05:08]} Bxe5 {[%emt 0:01:01]} 24. Qxe5 {[%emt 0:00:41]} Rfd8 {[%emt 0:04:32]} 25. Qxd5 {[%emt 0:01:02]} Rxd5 {[%emt 0:00:05]} 26. Kf1 {[%emt 0:00:18]} Rd6 {[%emt 0:02:49]} 27. Ke2 {[%emt 0:00:08]} Rb8 {[%emt 0:02:46]} 28. b3 {[%emt 0:00:27]} Rb6 {[%emt 0:00:29]} 29. Ke3 {[%emt 0:00:22]} Kf7 {[%emt 0:00:26]} 30. f4 {[%emt 0:00:42]} Ke7 {[%emt 0:00:47]} 31. Ra4 {[%emt 0:00:22]} Rd7 {[%emt 0:00:35]} 32. Rac4 {[%emt 0:00:27]} Kd6 {[%emt 0:00:23]} 33. Rc5 {[%emt 0:00:21]} Ra6 {[%emt 0:00:20]} 34. R1c2 {[%emt 0:00:12]} Rb7 {[%emt 0:00:37]} 35. Kd3 {[%emt 0:01:03]} Rb5 {[%emt 0:00:40]} 36. R5c4 {[%emt 0:01:08]} Rb7 {[%emt 0:00:25]} 37. Rc5 {[%emt 0:00:23]} Rb5 {[%emt 0:00:35]} 38. R5c4 {[%emt 0:00:31]} Rb7 {[%emt 0:00:36]} 39. Rc5 {[%emt 0:00:40]} Rb5 {[%emt 0:00:24] Ke4 Ke5+} 1/2-1/2

[Event "EYCC Girls-U14 2019"]
[Site "Bratislava"]
[Date "2019.08.07"]
[Round "6.1"]
[White "Yakimova, Mariya"]
[Black "Allahverdiyeva, Ayan"]
[Result "0-1"]
[ECO "D34"]
[WhiteElo "2250"]
[BlackElo "2114"]
[Annotator "NA"]
[PlyCount "52"]
[EventDate "2019.08.02"]
[EventType "swiss"]
[EventCountry "SVK"]
[SourceTitle "playchess.com"]
[Source "ChessBase"]
[SourceQuality "1"]
[TimeControl "40/5400+30:1800+30"]

1. d4 {[%emt 0:00:00]} d5 {[%emt 0:00:42]} 2. Nf3 {[%emt 0:00:00]} e6 {[%emt 0:03:16]} 3. c4 {[%emt 0:01:30]} c5 {[%emt 0:00:24]} 4. cxd5 {[%emt 0:00:28]} exd5 {[%emt 0:00:06]} 5. g3 {[%emt 0:00:34]} Nf6 {[%emt 0:00:25]} 6. Bg2 {[%emt 0:00:05]} Be7 {[%emt 0:00:05]} 7. O-O {[%emt 0:00:24]} O-O {[%emt 0:00:11]} 8. Nc3 {[%emt 0:00:57]} Nc6 {[%emt 0:00:39]} 9. Bf4 {[%emt 0:06:29]} Re8 {[%emt 0:02:08]} 10. Re1 {[%emt 0:00:08]} Bg4 {[%emt 0:06:59]} 11. Be3 {[%emt 0:03:18]} c4 {[%emt 0:04:43]} 12. Ne5 {[%emt 0:02:12]} Be6 {[%emt 0:02:37]} 13. f4 {[%emt 0:07:15]} Bb4 {[%emt 0:03:32]} 14. Rf1 {[%emt 0:04:34]} Qa5 {[%emt 0:03:07]} 15. Qc2 {[%emt 0:03:36]} Ng4 {[%emt 0:11:05]} 16. Nxg4 {[%emt 0:05:47]} Bxg4 {[%emt 0:02:21]} 17. Nxd5 {[%emt 0:14:39]} Rad8 {[%emt 0:00:59]} 18. Nxb4 {[%emt 0:02:29]} Qxb4 {[%emt 0:00:15]} 19. Bxc6 {[%emt 0:08:19]} bxc6 {[%emt 0:16:41]} 20. Bd2 {[%emt 0:00:13]} Qb6 {[%emt 0:07:24]} 21. e3 {[%emt 0:02:24]} c5 {[%emt 0:00:52]} 22. dxc5 {[%emt 0:02:52]} Qxc5 {[%emt 0:00:06]} 23. Rae1 {[%emt 0:00:06]} Rd3 {[%emt 0:00:46]} 24. Bc3 {[%emt 0:05:04]} Bh3 {[%emt 0:05:26]} 25. Qa4 {[%emt 0:11:40]} Rdxe3 {[%emt 0:02:41]} 26. Qa5 {[%emt 0:02:37]} Rxg3+ {[%emt 0:00:10]} 0-1

[Event "EYCC Girls-U14 2019"]
[Site "Bratislava"]
[Date "2019.08.07"]
[Round "6.2"]
[White "Nur-Mukhametova, Alisa"]
[Black "Bondareva, Daria"]
[Result "1-0"]
[ECO "C41"]
[WhiteElo "2126"]
[BlackElo "1998"]
[Annotator "ChessBase"]
[PlyCount "202"]
[EventDate "2019.08.02"]
[EventType "swiss"]
[EventCountry "SVK"]
[SourceTitle "playchess.com"]
[Source "ChessBase"]
[SourceQuality "1"]
[TimeControl "40/5400+30:1800+30"]

1. e4 {[%emt 0:00:00]} e5 {[%emt 0:00:00]} 2. Nf3 {[%emt 0:00:00]} d6 {[%emt 0:00:00]} 3. Bc4 {[%emt 0:00:26]} Be6 {[%emt 0:00:12]} 4. Bb3 {[%emt 0:03:10]} Nc6 {[%emt 0:05:11]} 5. d4 {[%emt 0:03:24]} exd4 {[%emt 0:10:34]} 6. Nxd4 {[%emt 0:00:22]} Nxd4 {[%emt 0:00:45]} 7. Qxd4 {[%emt 0:00:14]} Qf6 {[%emt 0:03:05]} 8. Qd3 {[%emt 0:10:19]} O-O-O {[%emt 0:07:30]} 9. Nc3 {[%emt 0:02:13]} Ne7 {[%emt 0:03:18]} 10. O-O {[%emt 0:03:50]} a6 {[%emt 0:04:33]} 11. Be3 {[%emt 0:05:29]} Qg6 {[%emt 0:04:52]} 12. Bxe6+ {[%emt 0:11:46]} fxe6 {[%emt 0:02:23]} 13. f4 {[%emt 0:00:31]} Nc6 {[%emt 0:02:52]} 14. a3 {[%emt 0:12:22]} d5 {[%emt 0:09:51]} 15. f5 Qe8 {[%emt 0:00:04]} 16. Bg5 {[%emt 0:18:22]} Be7 {[%emt 0:02:46]} 17. Bxe7 {[%emt 0:00:44]} Qxe7 {[%emt 0:01:59]} 18. fxe6 {[%emt 0:03:05]} d4 {[%emt 0:02:22]} 19. Nd5 {[%emt 0:01:08]} Qxe6 {[%emt 0:00:48]} 20. Rae1 {[%emt 0:01:10]} Kb8 {[%emt 0:08:07]} 21. b4 {[%emt 0:05:23]} Qd6 {[%emt 0:04:39]} 22. h3 {[%emt 0:03:18]} Ne5 {[%emt 0:02:36]} 23. Qb3 {[%emt 0:01:59]} Rhe8 {[%emt 0:09:11]} 24. a4 {[%emt 0:03:51]} c6 {[%emt 0:04:48]} 25. Nf4 {[%emt 0:00:56]} d3 {[%emt 0:04:03]} 26. Nxd3 {[%emt 0:00:22]} Nxd3 {[%emt 0:00:46]} 27. cxd3 {[%emt 0:00:27]} Qxd3 {[%emt 0:01:03]} 28. Qxd3 {[%emt 0:01:47]} Rxd3 {[%emt 0:00:04]} 29. Rf7 {[%emt 0:00:13]} Kc8 {[%emt 0:04:07]} 30. Rxg7 {[%emt 0:00:28]} Rd7 {[%emt 0:00:01]} 31. Rxd7 {[%emt 0:00:41]} Kxd7 {[%emt 0:00:02]} 32. Kf2 {[%emt 0:00:20]} Ke6 {[%emt 0:00:44]} 33. Ke3 {[%emt 0:01:36]} Rg8 {[%emt 0:01:09]} 34. g4 {[%emt 0:00:12]} h5 {[%emt 0:01:26]} 35. Rg1 {[%emt 0:02:17]} hxg4 {[%emt 0:00:21]} 36. hxg4 {[%emt 0:01:40]} Ke5 {[%emt 0:00:02]} 37. g5 {[%emt 0:00:34]} b6 {[%emt 0:00:57]} 38. g6 {[%emt 0:02:02]} Rg7 {[%emt 0:00:30]} 39. Rg5+ {[%emt 0:01:21]} Kf6 {[%emt 0:00:44]} 40. Kf4 {[%emt 0:00:00]} Ke6 {[%emt 0:00:00]} 41. a5 {[%emt 0:14:19]} bxa5 {[%emt 0:04:44]} 42. bxa5 {[%emt 0:02:11]} Rg8 {[%emt 0:00:53]} 43. g7 {[%emt 0:01:29]} Kf7 {[%emt 0:00:14]} 44. Ke5 {[%emt 0:00:48]} Re8+ {[%emt 0:00:04]} 45. Kd6 {[%emt 0:01:01]} Kg8 {[%emt 0:00:45]} 46. e5 {[%emt 0:00:16]} c5 {[%emt 0:00:16]} 47. Kxc5 {[%emt 0:00:08]} Rb8 {[%emt 0:00:02]} 48. Kd6 {[%emt 0:01:19]} Rb5 {[%emt 0:00:18]} 49. Ke7 {[%emt 0:00:38]} Rxa5 {[%emt 0:01:35]} 50. Kf6 {[%emt 0:00:01]} Ra1 {[%emt 0:01:41]} 51. e6 {[%emt 0:01:28]} Rb1 {[%emt 0:01:56]} 52. e7 {[%emt 0:03:46]} Rb6+ {[%emt 0:00:25]} 53. Ke5 {[%emt 0:03:19]} Rb5+ {[%emt 0:00:04]} 54. Ke6 {[%emt 0:00:53]} Rxg5 {[%emt 0:00:04]} 55. e8=Q+ {[%emt 0:00:08]} Kxg7 {[%emt 0:00:03]} 56. Qf7+ {[%emt 0:00:24]} Kh6 {[%emt 0:03:12]} 57. Kf6 {[%emt 0:00:36]} Rg3 {[%emt 0:00:19]} 58. Qd5 {[%emt 0:01:41]} Rg6+ {[%emt 0:00:46]} 59. Kf7 {[%emt 0:00:08]} Rg7+ {[%emt 0:00:44]} 60. Kf8 {[%emt 0:00:30]} Rg4 {[%emt 0:03:12]} 61. Qf5 {[%emt 0:00:45]} Rg5 {[%emt 0:01:25]} 62. Qf6+ {[%emt 0:00:35]} Kh5 {[%emt 0:00:08]} 63. Qh8+ {[%emt 0:01:09]} Kg4 {[%emt 0:02:01]} 64. Qd4+ {[%emt 0:00:49]} Kh5 {[%emt 0:00:43]} 65. Kf7 {[%emt 0:00:27]} a5 {[%emt 0:00:48]} 66. Qe4 {[%emt 0:00:52]} Rg4 {[%emt 0:00:47]} 67. Qf3 {[%emt 0:01:07]} Kh4 {[%emt 0:01:07]} 68. Kf6 {[%emt 0:00:22]} Rg3 {[%emt 0:00:33]} 69. Qf2 {[%emt 0:00:27]} Kg4 {[%emt 0:00:21]} 70. Qf5+ {[%emt 0:00:22]} Kh4 {[%emt 0:00:09]} 71. Qh7+ {[%emt 0:00:12]} Kg4 {[%emt 0:00:05]} 72. Qe4+ {[%emt 0:00:05]} Kh3 {[%emt 0:01:32]} 73. Kf5 {[%emt 0:00:18]} Rg1 {[%emt 0:01:09]} 74. Qe2 {[%emt 0:00:39]} Rg2 {[%emt 0:00:35]} 75. Qf3+ {[%emt 0:01:51]} Kh2 {[%emt 0:00:06]} 76. Kf4 {[%emt 0:00:25]} Kg1 {[%emt 0:01:17]} 77. Ke3 {[%emt 0:00:31]} Kh2 {[%emt 0:00:26]} 78. Qf4+ {[%emt 0:00:42]} Kg1 {[%emt 0:02:03]} 79. Qh4 {[%emt 0:00:43]} Ra2 {[%emt 0:01:17]} 80. Qg3+ {[%emt 0:01:16]} Kf1 {[%emt 0:01:26]} 81. Qf3+ {[%emt 0:00:38]} Kg1 {[%emt 0:00:08]} 82. Qd1+ {[%emt 0:00:26]} Kh2 {[%emt 0:01:00]} 83. Qd6+ {[%emt 0:00:50]} Kg1 {[%emt 0:00:10]} 84. Qg6+ {[%emt 0:01:27]} Rg2 {[%emt 0:00:03]} 85. Qb1+ {[%emt 0:00:21]} Kh2 {[%emt 0:00:04]} 86. Qe1 {[%emt 0:00:35]} a4 {[%emt 0:01:05]} 87. Kf3 {[%emt 0:00:08]} a3 {[%emt 0:00:20]} 88. Qh4+ {[%emt 0:00:30]} Kg1 {[%emt 0:00:04]} 89. Qd4+ {[%emt 0:00:24]} Kh1 {[%emt 0:00:49]} 90. Qd1+ {[%emt 0:00:30]} Kh2 {[%emt 0:00:54]} 91. Qd6+ {[%emt 0:00:10]} Kg1 {[%emt 0:00:12]} 92. Qxa3 {[%emt 0:00:20]} Rf2+ {[%emt 0:00:02]} 93. Ke3 {[%emt 0:00:15]} Rg2 {[%emt 0:00:38]} 94. Qc1+ {[%emt 0:00:24]} Kh2 {[%emt 0:00:02]} 95. Qc7+ {[%emt 0:00:27]} Kg1 {[%emt 0:00:26]} 96. Kf3 {[%emt 0:01:03]} Rf2+ {[%emt 0:00:31]} 97. Kg3 {[%emt 0:00:01]} Rg2+ {[%emt 0:00:16]} 98. Kh3 {[%emt 0:00:05]} Re2 {[%emt 0:00:11]} 99. Qf4 {[%emt 0:00:46]} Ra2 {[%emt 0:01:37]} 100. Qc1+ {[%emt 0:02:13]} Kf2 {[%emt 0:00:07]} 101. Qc5+ {[%emt 0:00:07]} Ke1 1-0

[Event "EYCC Girls-U14 2019"]
[Site "Bratislava"]
[Date "2019.08.07"]
[Round "6.3"]
[White "Lhotska, Anna"]
[Black "Zeliantsova, Kseniya"]
[Result "0-1"]
[ECO "A48"]
[WhiteElo "1922"]
[BlackElo "1907"]
[Annotator "NA"]
[PlyCount "138"]
[EventDate "2019.08.02"]
[EventType "swiss"]
[EventCountry "SVK"]
[SourceTitle "playchess.com"]
[Source "ChessBase"]
[SourceQuality "1"]
[TimeControl "40/5400+30:1800+30"]

1. Nf3 {[%emt 0:00:00]} Nf6 {[%emt 0:00:00]} 2. d4 {[%emt 0:00:00]} g6 {[%emt 0:00:00]} 3. Bg5 {[%emt 0:00:00]} Bg7 {[%emt 0:00:00]} 4. Nbd2 {[%emt 0:00:00]} d6 {[%emt 0:00:43]} 5. c3 {[%emt 0:00:18]} Nbd7 {[%emt 0:00:59]} 6. e4 {[%emt 0:00:43]} e5 {[%emt 0:01:11]} 7. dxe5 {[%emt 0:00:38]} dxe5 {[%emt 0:01:37]} 8. Be2 {[%emt 0:00:47]} O-O {[%emt 0:01:29]} 9. O-O {[%emt 0:00:38]} Qe7 {[%emt 0:02:42]} 10. Qc2 {[%emt 0:01:35]} b6 {[%emt 0:05:59]} 11. Rfe1 {[%emt 0:01:20]} Bb7 {[%emt 0:00:11]} 12. Bf1 {[%emt 0:00:52]} Rad8 {[%emt 0:09:19]} 13. a4 {[%emt 0:04:48]} h6 {[%emt 0:11:50]} 14. Bh4 {[%emt 0:02:13]} a6 {[%emt 0:00:20]} 15. b4 {[%emt 0:06:50]} g5 {[%emt 0:15:58]} 16. Bg3 {[%emt 0:00:56]} Nh7 {[%emt 0:06:00]} 17. Reb1 {[%emt 0:18:44]} Bf6 {[%emt 0:08:52]} 18. h3 {[%emt 0:04:32]} h5 {[%emt 0:01:23]} 19. Nh2 {[%emt 0:04:51]} h4 {[%emt 0:00:27]} 20. Ng4 {[%emt 0:02:57]} hxg3 {[%emt 0:01:15]} 21. Nh6+ {[%emt 0:00:11]} Kh8 {[%emt 0:00:21]} 22. fxg3 {[%emt 0:02:50]} c5 {[%emt 0:06:22]} 23. Bc4 {[%emt 0:05:51]} Bg7 {[%emt 0:05:08]} 24. Nf5 {[%emt 0:00:41]} Qf6 {[%emt 0:00:05]} 25. Rf1 {[%emt 0:02:29]} cxb4 {[%emt 0:02:05]} 26. cxb4 {[%emt 0:00:28]} b5 {[%emt 0:01:18]} 27. axb5 {[%emt 0:04:27]} axb5 {[%emt 0:01:06]} 28. Bb3 {[%emt 0:02:24]} Qb6+ {[%emt 0:02:09]} 29. Kh2 {[%emt 0:00:13]} Nhf6 {[%emt 0:01:59]} 30. Qd1 {[%emt 0:02:39]} Nb8 {[%emt 0:01:28]} 31. Qe2 {[%emt 0:01:02]} Nc6 {[%emt 0:02:41]} 32. Nf3 {[%emt 0:01:34]} g4 {[%emt 0:05:05]} 33. N3h4 {[%emt 0:06:06]} Nd4 {[%emt 0:00:18]} 34. Qe3 {[%emt 0:02:23]} Nxe4 {[%emt 0:03:44]} 35. Bc2 {[%emt 0:04:54]} Qc6 {[%emt 0:00:04]} 36. Nxg7 {[%emt 0:02:29]} Kxg7 {[%emt 0:00:06]} 37. Bxe4 {[%emt 0:00:40]} Qxe4 {[%emt 0:00:25]} 38. Qg5+ {[%emt 0:00:36]} Kh7 {[%emt 0:00:33]} 39. Rf6 {[%emt 0:00:48]} Rd6 {[%emt 0:01:54]} 40. Rxd6 {[%emt 0:00:00]} Qxg2+ {[%emt 0:00:00]} 41. Nxg2 {[%emt 0:00:53]} Nf3+ {[%emt 0:00:25]} 42. Kh1 {[%emt 0:00:14]} Nxg5 {[%emt 0:00:01]} 43. hxg4 {[%emt 0:01:59]} Kg7 {[%emt 0:04:36]} 44. Rb6 {[%emt 0:02:30]} Be4 {[%emt 0:00:14]} 45. Kg1 {[%emt 0:07:44]} Rd8 {[%emt 0:00:51]} 46. Nh4 {[%emt 0:02:34]} Rd2 {[%emt 0:02:00]} 47. Kf1 {[%emt 0:10:14]} Rb2 {[%emt 0:08:11]} 48. Nf5+ {[%emt 0:03:00]} Bxf5 {[%emt 0:00:58]} 49. gxf5 {[%emt 0:01:56]} Rxb4 {[%emt 0:00:40]} 50. Re1 {[%emt 0:00:52]} Nf3 {[%emt 0:04:24]} 51. Re3 {[%emt 0:00:55]} Nd2+ {[%emt 0:01:00]} 52. Ke2 {[%emt 0:03:33]} Nc4 {[%emt 0:00:04]} 53. Rb7 {[%emt 0:01:07]} Nxe3 {[%emt 0:01:06]} 54. Kxe3 {[%emt 0:00:07]} Kf6 {[%emt 0:01:41]} 55. Kf3 {[%emt 0:00:44]} Rc4 {[%emt 0:03:14]} 56. Rxb5 {[%emt 0:01:06]} Kxf5 {[%emt 0:00:06]} 57. Rb6 {[%emt 0:02:43]} Rc3+ {[%emt 0:01:21]} 58. Kf2 {[%emt 0:00:27]} Rc2+ {[%emt 0:02:26]} 59. Kf3 {[%emt 0:01:17]} e4+ {[%emt 0:00:39]} 60. Ke3 {[%emt 0:00:18]} Rc3+ {[%emt 0:00:02]} 61. Kf2 {[%emt 0:00:22]} Rf3+ {[%emt 0:00:23]} 62. Kg2 {[%emt 0:06:41]} Kg4 {[%emt 0:00:07]} 63. Rb7 {[%emt 0:02:23]} Rxg3+ {[%emt 0:00:07]} 64. Kf2 {[%emt 0:00:06]} Rf3+ {[%emt 0:00:10]} 65. Ke2 {[%emt 0:00:08]} f5 {[%emt 0:00:19]} 66. Rc7 {[%emt 0:00:37]} Ra3 {[%emt 0:01:02]} 67. Rc2 {[%emt 0:00:27]} f4 {[%emt 0:00:23]} 68. Rc8 {[%emt 0:00:15]} Ra2+ {[%emt 0:00:04]} 69. Ke1 {[%emt 0:00:07]} Kf3 {[%emt 0:00:09]} 0-1